Cogmind - Beta 16 @@@ ROGUE MODE // 2025.12.26 @ 17:05:23 Player: teh_pwnerer Result: Destroyed by S-10 Pest with Light Assault Rifle Performance ------------- Evolutions (2) 1000 Regions Visited (4) 800 Robots Destroyed (25) 125 Value Destroyed (681) 681 Prototype IDs (0) 0 Alien Tech Used (0) 0 Bonus (0) 0 TOTAL SCORE: 2606 Bonus ------- None Cogmind --------- Core Integrity 0/550 Matter 297/300 Energy 57/100 System Corruption 0% Temperature Cool (1) Movement Flying (120) Ox1 Location -8/Materials Parts ------- > --- POWER (1) -------- (None) > --- PROPULSION (2) --- Flight Unit > --- UTILITY (4) ------ Heat Sink > --- WEAPON (4) ------- Particle Gun Light Assault Rifle > --- INVENTORY (5) ---- (None) Peak State ------------ > --- POWER ------------ Ion Engine > --- PROPULSION ------- Aluminum Leg Aluminum Leg > --- UTILITY ---------- Small Storage Unit Targeting Computer > --- WEAPON ----------- Heavy EM Pulse Gun Assault Rifle > --- INVENTORY -------- Assault Rifle Flail [Rating: 8] Favorites ----------- Power Ion Engine Engine Ion Engine Propulsion Aluminum Leg Leg Aluminum Leg Wheel Wheel Flight Unit Flight Unit Utility Small Storage Unit Device Heat Sink Storage Small Storage Unit Processor Targeting Computer Protection Scrap Shield Weapon Assault Rifle Energy Gun Small Laser Ballistic Gun Assault Rifle Impact Weapon Flail Build | -11 -10 -10 -10 -8 ------- Run | Yrd Mat Min Sub Mat Slots Evolved 4 | . . . . 4 Power . | . . . . . Propulsion . | . . . . . Utility 2 | . . . . 2 Weapon 2 | . . . . 2 Parts Attached 34 | 7 10 3 2 12 Power 3 | 1 . 1 . 1 Engine 3 | 1 . 1 . 1 Core . | . . . . . Reactor . | . . . . . Propulsion 14 | 2 5 2 . 5 Treads . | . . . . . Leg 4 | 2 1 . . 1 Wheel 2 | . 2 . . . Hover . | . . . . . Flight 8 | . 2 2 . 4 Utility 4 | 1 1 . 1 1 Device 1 | . . . . 1 Storage 1 | 1 . . . . Processor 1 | . 1 . . . Hackware . | . . . . . Protection 1 | . . . 1 . Artifact . | . . . . . Weapon 13 | 3 4 . 1 5 Energy Gun 7 | 1 3 . . 3 Energy Cannon . | . . . . . Ballistic Gun 5 | 2 . . 1 2 Ballistic Cannon . | . . . . . Launcher . | . . . . . Special Weapon . | . . . . . Impact Weapon 1 | . 1 . . . Slashing Weapon . | . . . . . Piercing Weapon . | . . . . . Special Melee Weapon . | . . . . . Unidentified Prototypes . | . . . . . Parts Lost 15 | . 5 1 . 9 Power 1 | . 1 . . . Propulsion 8 | . 2 . . 6 Utility 1 | . . . . 1 Weapon 5 | . 2 1 . 2 Highest Loss Streak 3 | . 3 1 . 3 To Critical Strikes 1 | . . 1 . . Average Backups 1 | 1 2 . . . Power . | . . . . . Propulsion . | . . . . . Utility . | . . . . . Weapon . | . 1 . . . Tool/Special . | . . . . . Unused Backups 4 | 3 . 1 . . Power 1 | 1 . . . . Propulsion 2 | 2 . . . . Utility 1 | . . 1 . . Weapon . | . . . . . Tool/Special . | . . . . . Average Slot Usage (%) 74 | . 92 76 63 29 Engine 5 | . 9 1 . . Leg 12 | . 21 . . . Wheel 2 | . 4 . . . Flight 8 | . 1 26 28 10 Storage 12 | . 14 14 12 6 Processor 10 | . 13 14 6 . Energy Gun 10 | . 11 14 14 7 Ballistic Gun 8 | . 11 5 2 3 Impact Weapon 2 | . 4 . . . Peak Build Rating 8 | 6 8 6 7 8 Average Rating 5 | 5 7 5 4 4 On Entrance 4 | . 6 5 5 6 Avg Prop Armor Cover (%) 12 | . 12 . . . Naked Turns 1 | . . . . 1 Heaviest Build 19 | 14 15 11 19 10 Greatest Support 20 | 20 20 8 8 10 Greatest Overweight (x) 2 | 1 2 1 2 2 Average Overweight (x) . | . . . . . Largest Inventory Capacity 8 | 8 8 8 8 8 Average Capacity 7 | 7 8 8 7 7 Most Carried 7 | 7 6 3 3 2 Average Carried 1 | 1 2 . . . Final Capacity 8 | 8 8 8 8 5 Final Carried 3 | 1 3 . . . Class Distribution -------------------- 97% | Mutant Dominant Class ---------------- Mutant | -10/Materials Mutant | -10/Mines Mutant | -10/Subcaves Mutant | -8/Materials Resources | -11 -10 -10 -10 -8 ----------- Run | Yrd Mat Min Sub Mat Matter Collected 664 | 251 196 54 . 163 Remotely . | . . . . . Salvage Created 818 | . 410 . . 408 Parts 50 | . 21 . . 29 Haulers Intercepted . | . . . . . Recyclers Shooed . | . . . . . Parts Field Recycled . | . . . . . Retrieved Matter . | . . . . . Parts Self-Destructed . | . . . . . Prevented . | . . . . . Parts Restored . | . . . . . Kills | -11 -10 -10 -10 -8 ------- Run | Yrd Mat Min Sub Mat Combat Hostiles Destroyed 22 | . 10 . . 12 Guns 22 | . 10 . . 12 Classes Destroyed 5 | . 3 . . 2 Worker 3 | . 1 . . 2 Swarmer 8 | . 2 . . 6 Grunt 11 | . 8 . . 3 Brawler 1 | . . . . 1 Sentry 2 | . . . . 2 Best Kill Streak 3 | . 2 . . 3 Combat Bots Only 3 | . 2 . . 3 Max Kills in Single Turn 1 | . 1 . . 1 Gunslinging . | . . . . . Exploded . | . . . . . Melee . | . . . . . Uniques/NPCs Destroyed . | . . . . . Combat | -11 -10 -10 -10 -8 -------- Run | Yrd Mat Min Sub Mat Hostile Shots Fired 234 | . 80 . . 154 Missed 67 | . 16 . . 51 Hits 167 | . 64 . . 103 Melee 2 | . . . . 2 Projectile 165 | . 64 . . 101 Critical Strikes 7 | . 1 1 . 5 Damage Taken 1923 | . 766 14 . 1143 Core 715 | . 160 . . 555 Absorbed by Shields . | . . . . . Core Remaining (%) 68 | 100 . . 36 . Volleys Fired 143 | . 63 4 9 67 Largest 2 | . 2 2 2 2 Hottest 85 | . 85 60 70 85 Shots Fired 188 | . 93 5 11 79 Gun 188 | . 93 5 11 79 Cannon . | . . . . . Launcher . | . . . . . Special . | . . . . . Kinetic 63 | . 34 1 2 26 Thermal 96 | . 40 4 9 43 Explosive . | . . . . . Electromagnetic 29 | . 19 . . 10 Robot Hit Streak 22 | . 22 11 . 8 Robot Miss Streak 5 | . 5 1 . 4 Penetration Max . | . . . . . Secondary Targets . | . . . . . Shots Hit Robots 111 | . 61 4 . 46 Core Hits 48 | . 23 1 . 24 Critical Kills . | . . . . . Critical Parts Destroyed . | . . . . . Critical Strikes 3 | . . . . 3 Burn 2 | . . . . 2 Corrupt 1 | . . . . 1 Melee Attacks 7 | . 7 . . . Impact 7 | . 7 . . . Slashing . | . . . . . Piercing . | . . . . . Sneak Attacks . | . . . . . Combat Hostiles . | . . . . . Follow-up Attacks . | . . . . . Damage Inflicted 1622 | . 866 45 . 711 Guns 1533 | . 777 45 . 711 Cannons . | . . . . . Explosions . | . . . . . Melee 89 | . 89 . . . Ramming . | . . . . . Kinetic 482 | . 286 11 . 185 Thermal 720 | . 275 34 . 411 Explosive . | . . . . . Electromagnetic 331 | . 216 . . 115 Impact 89 | . 89 . . . Slashing . | . . . . . Piercing . | . . . . . Highest Corruption . | . . . . . Average Corruption . | . . . . . Corruption Purged . | . . . . . Corruption Blocked . | . . . . . Overload Shots . | . . . . . Overflow Damage 2 | . 2 . . . Projectiles . | . . . . . Explosions . | . . . . . Melee 2 | . 2 . . . Knockbacks . | . . . . . Impact . | . . . . . Kinetic . | . . . . . Secondary . | . . . . . Self-Inflicted Damage . | . . . . . Shots . | . . . . . Rammed 1 | . . . . 1 Targets Rammed 1 | . . . . 1 Kicked . | . . . . . Crushed . | . . . . . Highest Temperature 285 | . 285 . . 40 Average Temperature 71 | . 118 . . 10 Received Heat Transfer 813 | . 435 . . 378 Siege Activations . | . . . . . Martial Activations . | . . . . . Shielding Activations . | . . . . . Robots Disrupted . | . . . . . Combat Hostiles . | . . . . . Robots Corrupted . | . . . . . Combat Hostiles . | . . . . . Parts Fried 1 | . . . . 1 Impact Corruptions 1 | . 1 . . . Robots Melted . | . . . . . Combat Hostiles . | . . . . . Parts Melted . | . . . . . Heat Transferred 1773 | . 625 75 . 1073 Parts Sabotaged . | . . . . . Parts Stolen . | . . . . . Parts Stripped . | . . . . . Power Chain Reactions . | . . . . . Alert | -11 -10 -10 -10 -8 ------- Run | Yrd Mat Min Sub Mat Maximum Alert Level . | . . . . . Low Security (%) 100 | 100 100 100 . 100 Level 1 . | . . . . . Level 2 . | . . . . . Level 3 . | . . . . . Level 4 . | . . . . . Level 5 . | . . . . . High Security . | . . . . . Max Security . | . . . . . Peak Influence 140 | . 55 17 . 140 Initial 17 | . . 17 . . Average 13 | . 13 2 . 45 Influence Increases 602 | . 262 . . 340 Destroy 0b10 Robot/C 440 | . 200 . . 240 Destroy 0b10 Robot/NC 15 | . 5 . . 10 Destroy Leader 100 | . 40 . . 60 Successful Hack 1 | . 1 . . . Disable Machine 30 | . 15 . . 15 Destroy Structure 1 | . 1 . . . Lose Combat Pursuer 15 | . . . . 15 Influence Decreases 482 | . 216 46 . 220 Entered New Map 29 | . . 29 . . Time Decay 313 | . 166 17 . 130 Lost Part 140 | . 50 . . 90 Squads Dispatched 4 | . 1 . . 3 Investigation . | . . . . . Extermination . | . . . . . Reinforcement 1 | . 1 . . . Assault . | . . . . . Garrison 3 | . . . . 3 Intercept . | . . . . . Searches Triggered . | . . . . . Construction Impeded . | . . . . . Haulers Reinforced . | . . . . . Active Scanning Responses . | . . . . . Cargo Convoy Interrupts . | . . . . . Stealth | -11 -10 -10 -10 -8 --------- Run | Yrd Mat Min Sub Mat Distress Signals 6 | . . . . 6 Communications Jammed . | . . . . . Distress Signals . | . . . . . Times Spotted 44 | . 21 . . 23 Peak Tracking Total 7 | . 3 . . 7 Tactical Retreats 1 | . . . . 1 Traps | -11 -10 -10 -10 -8 ------- Run | Yrd Mat Min Sub Mat Traps Triggered . | . . . . . Indirectly . | . . . . . Trap Hack Attempts . | . . . . . Triggered . | . . . . . Disarmed . | . . . . . Reprogrammed . | . . . . . Reused . | . . . . . Traps Extracted . | . . . . . Installed . | . . . . . Triggered . | . . . . . Machines | -11 -10 -10 -10 -8 ---------- Run | Yrd Mat Min Sub Mat Machines Disabled 2 | . 1 . . 1 Max in Single Turn 1 | . 1 . . 1 Machines Repaired . | . . . . . Machines Dismantled . | . . . . . Machines Sabotaged . | . . . . . Overloaded Fab Kills . | . . . . . Hacking | -11 -10 -10 -10 -8 --------- Run | Yrd Mat Min Sub Mat Machines Accessed 1 | . 1 . . . Terminals . | . . . . . Fabricators . | . . . . . Repair Stations . | . . . . . Recycling Units 1 | . 1 . . . Scanalyzers . | . . . . . Garrison Access . | . . . . . Total Hacks 7 | . 7 . . . Successful 4 | . 4 . . . Failed 3 | . 3 . . . Catastrophic 1 | . 1 . . . Database Lockouts . | . . . . . Manual . | . . . . . Terminals . | . . . . . Fabricators . | . . . . . Repair Stations . | . . . . . Recycling Units 7 | . 7 . . . Scanalyzers . | . . . . . Garrison Access . | . . . . . Terminal Hacks . | . . . . . Fabricator Hacks . | . . . . . Repair Station Hacks . | . . . . . Recycling Unit Hacks 4 | . 4 . . . Recycle Component 1 | . 1 . . . Process 1 | . 1 . . . Retrieve Matter 1 | . 1 . . . Retrieve Components 1 | . 1 . . . Scanalyzer . | . . . . . Garrison Access Hacks . | . . . . . Unauthorized Hacks . | . . . . . Terminals . | . . . . . Fabricators . | . . . . . Repair Stations . | . . . . . Recycling Units . | . . . . . Scanalyzers . | . . . . . Garrison Access . | . . . . . Data Cores Recovered . | . . . . . Used . | . . . . . Hacking Detections 1 | . 1 . . . Full Trace Events . | . . . . . Feedback Events . | . . . . . Feedback Blocked . | . . . . . Robot Schematics Acquired . | . . . . . Robots Built . | . . . . . Authchips . | . . . . . Time . | . . . . . Total Robot Build Rating . | . . . . . Part Schematics Acquired . | . . . . . Parts Built . | . . . . . Authchips . | . . . . . Time . | . . . . . Total Part Build Rating . | . . . . . Part Studies Acquired . | . . . . . Parts Repaired . | . . . . . Time . | . . . . . Parts Recycled 1 | . 1 . . . Recycled Matter 55 | . 55 . . . Retrieved Matter 55 | . 55 . . . Retrieved Components . | . . . . . Parts Scanalyzed . | . . . . . Part Schematics Acquired . | . . . . . Parts Damaged . | . . . . . Bothacking | -11 -10 -10 -10 -8 ------------ Run | Yrd Mat Min Sub Mat Used RIF Installer . | . . . . . Robots Hacked . | . . . . . Non-combat . | . . . . . Combat . | . . . . . Robot Hacks Applied . | . . . . . Relay Couplers Released . | . . . . . Fabnet Peak Effective % . | . . . . . Robots Rewired . | . . . . . Allies Hacked . | . . . . . Hacks Repelled . | . . . . . Allies | -11 -10 -10 -10 -8 -------- Run | Yrd Mat Min Sub Mat Total Allies . | . . . . . Largest Group . | . . . . . Highest-Rated Group . | . . . . . Highest-Rated Ally . | . . . . . Total Orders . | . . . . . Ally Attacks . | . . . . . Total Damage . | . . . . . Kills . | . . . . . Allies Corrupted . | . . . . . Allies Melted . | . . . . . Intel | -11 -10 -10 -10 -8 ------- Run | Yrd Mat Min Sub Mat Active Infowar (turns) . | . . . . . Robot Analysis Total . | . . . . . Derelict Logs Recovered . | . . . . . Drone Launches . | . . . . . Drone Recoveries . | . . . . . Exploration | -11 -10 -10 -10 -8 ------------- Run | Yrd Mat Min Sub Mat Turns Passed 2052 | 569 897 194 65 327 Spaces Moved 1446 | 264 574 365 83 160 Core 64 | 18 2 . . 44 Treads . | . . . . . Legs 594 | 246 338 . . 10 Wheels 221 | . 221 . . . Hover . | . . . . . Flight 567 | . 13 365 83 106 Fastest Speed 37 | 50 37 37 37 37 Average Speed 83 | 116 104 40 47 73 Slowest Speed 197 | 120 190 120 197 150 Overloaded Moves . | . . . . . Propulsion Burnouts . | . . . . . Robots Hopped . | . . . . . Potential Cave-ins . | . . . . . Cave-ins Triggered . | . . . . . Exploration Rate (%) 30 | 21 68 47 3 12 Regions Visited 4 Branch Regions 2 Pre-discovered Areas . | . . . . . Known Exits Taken . | . . . . . Unknown Exits Taken 4 | 1 1 1 1 . Scrap Searched 1 | . . 1 . . Spaces Dug . | . . . . . Terrain Destroyed . | . . . . . Melee . | . . . . . Projectile . | . . . . . AOE . | . . . . . Terrain Rammed . | . . . . . Walls Destroyed . | . . . . . Machines Disabled . | . . . . . Actions | -11 -10 -10 -10 -8 --------- Run | Yrd Mat Min Sub Mat Total 2099 | 527 771 407 99 295 Wait 408 | 245 92 32 . 39 Move 1442 | 263 573 364 82 160 Hop . | . . . . . Pick Up 37 | 9 13 1 2 12 Fast Attach 1 | 1 . . . . Attach 30 | 5 8 2 3 12 Detach 4 | . 2 . 2 . Swap 9 | 1 7 1 . . Drop 17 | 3 6 3 1 4 Fire 143 | . 63 4 9 67 Melee 7 | . 7 . . . Ram 1 | . . . . 1 Kick . | . . . . . Crush . | . . . . . Escape Stasis . | . . . . . Rewire . | . . . . . Trap . | . . . . . Miscellaneous . | . . . . . Route ------- -11/Scrapyard -10/Materials (discovered 4 exits: [*Mat x2] / [*Min x2]) -10/Mines -10/Subcaves -8/Materials History --------- Turn | Location | Event 31 | -11/Scrapyard | Discovered new exit (range 15) 570 | -11/Scrapyard | Entered Materials 571 | -10/Materials | Build established: Mutant 837 | -10/Materials | Discovered new exit (range 14) 1130 | -10/Materials | Discovered new exit (range 13) 1199 | -10/Materials | Lost 3 parts (1p1n1w) 1330 | -10/Materials | Discovered new exit (range 16) 1386 | -10/Materials | Core integrity fell below 50% 1390 | -10/Materials | Discovered new exit (range 9) 1467 | -10/Materials | Entered Mines 1485 | -10/Mines | Assembled infested the area 1526 | -10/Mines | Met 8R-AWN 1559 | -10/Mines | Discovered new exit (range 13) 1661 | -10/Mines | Entered Subcaves 1667 | -10/Subcaves | Discovered new exit (range 7) 1670 | -10/Subcaves | Shifting Twisted Machinery released Mak. Light Armor Plating 1699 | -10/Subcaves | Shifting Twisted Machinery released Sub. Machine Gun 1726 | -10/Subcaves | Entered Materials 1726 | -8/Materials | Evolved 4 slots: Utility x2, Weapon x2 1832 | -8/Materials | Garrison activated, responded to threat 1929 | -8/Materials | Lost 3 parts (2n1w) 1942 | -8/Materials | Core integrity fell below 50% 2009 | -8/Materials | Core integrity fell below 20% 2053 | -8/Materials | Destroyed by S-10 Pest with Light Assault Rifle Last Messages --------------- Aluminum Leg destroyed. Y-45 Defender destroyed. Acquired Flight Unit. Acquired 20 matter. R-06 Scavenger collects Wheel. Acquired Lgt. Assault Rifle. R-06 Scavenger collects Sml. Storage Unit. Acquired Heat Sink. R-06 Scavenger collects Sml. Storage Unit. Acquired 20 matter. W-25 Informer sends out distress signal. R-06 Scavenger collects Lgt. Treads. Acquired 1 matter. S-10 Pest destroyed. Acquired 1 matter. W-25 Informer sends out distress signal. S-10 Pest destroyed. W-25 Informer sends out distress signal. Flight Unit destroyed. Critical hit (Burn: +37). Map ----- +----------------------------------------------------+ | ?????????????????????????????????????????????????? | | ?????????????????????????????????????????????????? | | ?????????????????????????????????????????????????? | | ?????????????????????????????????????????????????? | | ?????????????????????????????????????????????????? | | ?????????????????????????????????????????????????? | | ?????????????????????????????????????????????????? | | ?????????????????????????????????????????????????? | | ?????????????????????????????????????????????????? | | ?????????????????????????????????????????????????? | | ?????????????????????????????????????????????????? | | ?????????????????????????????????????????????????? | | ?????????????????????????????????????????????????? | | ?????????????????????????????????????????????????? | | ?????????????????????????????????????????????????? | | ?????????????????????????????????????????????????? | | ?????????????????????? ??????????????????????????? | | ?????????????????????# #?????????????????????????? | | ?????????????????????# #?????????????????????????? | | ?????????????#???????# #?????????????????????????? | | ???????? ?#?# ??????# #?????????????????????????? | | ????????? # # ??????# ###???????????????????????? | | ?????????? # #+####### ######??????????????????? | | ???????????+ ???????????????????? | | ???????????# #????????????????????? | | ???????????# @ #????????????????????? | | ???????????# wb #????????????????????? | | ??????###### l #????????????????????? | | ??????# / #????????????????????? | | ??????# ^ #????????????????????? | | ?????## % gg #????????????????????? | | ?????"" """^ """ =s% #????????????????????? | | ????#"" """ """ %######## #????????????????????? | | ????#"T """ """ # # #????????????????????? | | ????#"" ^ %% # """ # ????????????????????? | | ?????"" ^ %* =# """ # ???????????????????? | | ???#### "^" "" * # """ # ??????????????????? | | ???# = "R" """%%# """ #? ?????????????????? | | ???# """ """!%+= "" #? ????????????????? | | ???# * %%# #? ????????????????? | | + != # "" #??#+###???????????????? | | ???# ############# """ #??????????????????????? | | ???# #???????????# """ #??????????????????????? | | ???# #???????????# """ #??????????????????????? | | ???# #???????????# "" #??????????????????????? | | ???# #???????????# #??????????????????????? | | ???# #???????????########??????????????????????? | | ???# +?????????????????????????????????????????? | | ???# #?????????????????????????????????????????? | | ???# #?????????????????????????????????????????? | +----------------------------------------------------+ Best States ------------- Heat Dissipation 41 Energy Generation 10 Energy Capacity 250 Matter Stores 300 Matter Capacity 300 Sight Range 16 Terrain Scan Density 10 Evasion (%) 62 Targeting Accuracy 5 Item Schematics ----------------- None Robot Schematics ------------------ None Fabricated ------------ Nothing Repaired ---------- Nothing Studied --------- None Alien Tech Used ----------------- None Achievements -------------- DATA ERROR: Steam Global Achievement% For Emergencies Only Troublemaker Challenges ------------ None Game ------ Seed ComponentSeismicLegs Manual? 0 Play Time 00:52:36 Cumulative 1.3 hours Start 2025.12.25 @ 17:34:31 End 2025.12.26 @ 17:05:23 Sessions 3 Manual Loads 0 Difficulty Rogue Special Mode None Game No. 2 Rogue 2 Adventurer 0 Explorer 0 Win Type - Total 0 Types 0/0/0/0/0/0/0/0/0/0 Lore% 0 Gallery% 2 Achievement% 2 Wizard Run 0 Options --------- Layout 1 ASCII 0 Keyboard 0 Movement Mouse Keybinds 0 Fullscreen 1 Font 24/Smallcaps Map View 50x35 Zoom Use 8% Tactical HUD 0 Map Filters NONE Filters NONE Steam 1 RUN: 39e4618e-3ae6-4918-a7b2-4c910c5ad065